Cogmind - Beta 10.2 @@@ ROGUE MODE // 2021.12.07 @ 03:07:39 // Winter2019/RPGLIKE Player: FontPeg Result: Destroyed by H-66 Slayer with Gauss Rifle Performance ------------- Evolutions (1) 500 Regions Visited (6) 1200 Robots Destroyed (4) 20 Value Destroyed (162) 162 Prototype IDs (4) 80 Alien Tech Used (0) 0 Bonus (300) 300 TOTAL SCORE: 2262 Bonus ------- Met Imprinter 300 Cogmind --------- Core Integrity 0/800 Matter 300/300 Energy 250/250 System Corruption 1% Temperature Cool (0) Movement Flying (200) Ox2 Location -6/Proximity Caves Parts ------- > --- POWER (1) -------- Ion Engine > --- PROPULSION (2) --- VTOL Module > --- UTILITY (3) ------ Enhanced Optical Array 0b10 Decoder Chip [Skirmisher] Armor Integrity Analyzer > --- WEAPON (3) ------- Greatsword Phasing Sabre > --- INVENTORY (4) ---- Protomatter-29 Relay Coupler [Programmer] (168) Molecular Deconstructor Peak State ------------ > --- POWER ------------ Ion Engine > --- PROPULSION ------- VTOL Module VTOL Module > --- UTILITY ---------- Enhanced Optical Array 0b10 Decoder Chip [Skirmisher] Armor Integrity Analyzer > --- WEAPON ----------- Greatsword Phasing Sabre > --- INVENTORY -------- Relay Coupler [Programmer] Relay Coupler [Programmer] Molecular Deconstructor [Rating: 33] Favorites ----------- Power Ion Engine Engine Ion Engine Propulsion VTOL Module Wheel Wheel Flight Unit VTOL Module Utility Armor Integrity Analyzer Processor Armor Integrity Analyzer Weapon Assault Rifle Energy Gun Small Laser Ballistic Gun Assault Rifle Launcher Grenade Launcher Slashing Weapon Greatsword Build | -11 -10 -10 -9 -9 -7 -6 ------- Run | Scr Mat Min Mat Min Zio Pro Slots Evolved 5 | 3 . . . . 1 1 Power . | . . . . . . . Propulsion 1 | 1 . . . . . . Utility 2 | 1 . . . . 1 . Weapon 2 | 1 . . . . . 1 Parts Attached 17 | 5 6 . 1 . 3 2 Power 1 | 1 . . . . . . Engine 1 | 1 . . . . . . Core . | . . . . . . . Reactor . | . . . . . . . Propulsion 4 | 2 2 . . . . . Treads . | . . . . . . . Leg . | . . . . . . . Wheel 2 | 2 . . . . . . Hover . | . . . . . . . Flight 2 | . 2 . . . . . Utility 5 | . 2 . 1 . 2 . Device . | . . . . . . . Storage . | . . . . . . . Processor 5 | . 2 . 1 . 2 . Hackware . | . . . . . . . Protection . | . . . . . . . Artifact . | . . . . . . . Weapon 7 | 2 2 . . . 1 2 Energy Gun 1 | . 1 . . . . . Energy Cannon . | . . . . . . . Ballistic Gun 2 | 2 . . . . . . Ballistic Cannon . | . . . . . . . Launcher 1 | . 1 . . . . . Special Weapon . | . . . . . . . Impact Weapon . | . . . . . . . Slashing Weapon 3 | . . . . . 1 2 Piercing Weapon . | . . . . . . . Special Melee Weapon . | . . . . . . . Unidentified Prototypes . | . . . . . . . Parts Lost 1 | . . . . . . 1 Power . | . . . . . . . Propulsion 1 | . . . . . . 1 Utility . | . . . . . . . Weapon . | . . . . . . . Highest Loss Streak 1 | . . . . . . 1 Average Slot Usage (%) 94 | . 92 100 100 100 94 85 Engine 12 | . 14 14 14 14 12 11 Wheel 1 | . 6 . . . . . Flight 24 | . 20 28 28 28 25 21 Processor 30 | . 22 28 28 28 35 33 Energy Gun 8 | . 9 14 14 14 6 . Ballistic Gun 9 | . 14 14 14 14 6 . Slashing Weapon 5 | . . . . . 5 19 Naked Turns . | . . . . . . . Heaviest Build 14 | 8 10 8 8 8 10 14 Greatest Support 26 | 26 26 10 10 10 10 10 Greatest Overweight (x) 2 | . 1 . . . . 2 Average Overweight (x) . | . . . . . . . Largest Inventory Capacity 4 | 1 1 1 3 3 3 4 Average Capacity 2 | 1 1 1 2 3 3 3 Most Carried 4 | 1 1 1 3 3 3 4 Average Carried 2 | . 1 1 2 3 2 3 Final Capacity 4 | 1 1 1 3 3 3 4 Final Carried 4 | 1 1 1 3 3 3 4 Class Distribution -------------------- 38% | Hacker-Mutant 33% | Mutant 27% | Hacker-Gladiator Dominant Class ---------------- Mutant | -10/Materials Mutant | -10/Mines Hacker-Mutant | -9/Materials Hacker-Mutant | -9/Mines Hacker-Mutant | -7/Zion Hacker-Gladiator | -6/Proximity Caves Resources | -11 -10 -10 -9 -9 -7 -6 ----------- Run | Scr Mat Min Mat Min Zio Pro Matter Collected 394 | 214 67 . . . 83 30 Remotely . | . . . . . . . Salvage Created 104 | . 67 . . . . 37 Parts 9 | . 7 . . . . 2 Haulers Intercepted . | . . . . . . . Recyclers Shooed . | . . . . . . . Parts Field Recycled . | . . . . . . . Retrieved Matter . | . . . . . . . Parts Self-Destructed 2 | . . . . . . 2 Prevented . | . . . . . . . Kills | -11 -10 -10 -9 -9 -7 -6 ------- Run | Scr Mat Min Mat Min Zio Pro Combat Hostiles Destroyed 4 | . 2 . . . . 2 Melee 2 | . . . . . . 2 Guns 2 | . 2 . . . . . Classes Destroyed 3 | . 1 . . . . 2 Swarmer 1 | . . . . . . 1 Grunt 2 | . 2 . . . . . Sentry 1 | . . . . . . 1 Best Kill Streak 2 | . 2 . . . . 1 Combat Bots Only 2 | . 2 . . . . 1 Max Kills in Single Turn 1 | . 1 . . . . 1 Gunslinging . | . . . . . . . Exploded . | . . . . . . . Melee 1 | . . . . . . 1 Uniques/NPCs Destroyed . | . . . . . . . Combat | -11 -10 -10 -9 -9 -7 -6 -------- Run | Scr Mat Min Mat Min Zio Pro Damage Taken 1133 | . 58 . . . . 1075 Core 944 | . 48 . . . . 896 Absorbed by Shields . | . . . . . . . Redirected to Core 640 | . 34 . . . . 606 Core Remaining (%) 100 | 100 . 100 . . . . Volleys Fired 8 | . 8 . . . . . Largest 2 | . 2 . . . . . Hottest 60 | . 60 . . . . . Shots Fired 16 | . 16 . . . . . Gun 16 | . 16 . . . . . Cannon . | . . . . . . . Launcher . | . . . . . . . Special . | . . . . . . . Kinetic 8 | . 8 . . . . . Thermal 8 | . 8 . . . . . Explosive . | . . . . . . . Electromagnetic . | . . . . . . . Robot Hit Streak 6 | . 6 . . . . . Robot Miss Streak 4 | . 4 . . . . . Penetration Max . | . . . . . . . Secondary Targets . | . . . . . . . Shots Hit Robots 16 | . 10 . . . . 6 Core Hits 7 | . 5 . . . . 2 Critical Hits . | . . . . . . . Critical Kills . | . . . . . . . Critical Parts Destroyed . | . . . . . . . Melee Attacks 13 | . . . . . . 13 Impact . | . . . . . . . Slashing 13 | . . . . . . 13 Piercing . | . . . . . . . Sneak Attacks . | . . . . . . . Combat Hostiles . | . . . . . . . Follow-up Attacks 1 | . . . . . . 1 Damage Inflicted 400 | . 106 . . . . 294 Guns 106 | . 106 . . . . . Cannons . | . . . . . . . Explosions . | . . . . . . . Melee 294 | . . . . . . 294 Ramming . | . . . . . . . Kinetic 59 | . 59 . . . . . Thermal 47 | . 47 . . . . . Explosive . | . . . . . . . Electromagnetic . | . . . . . . . Impact . | . . . . . . . Slashing 294 | . . . . . . 294 Piercing . | . . . . . . . Highest Corruption 1 | . . . . . . 1 Average Corruption 1 | . . . . . . 1 Corruption Purged . | . . . . . . . Overload Shots . | . . . . . . . Overflow Damage 4 | . . . . . . 4 Projectiles . | . . . . . . . Explosions . | . . . . . . . Melee 4 | . . . . . . 4 Knockbacks . | . . . . . . . Impact . | . . . . . . . Kinetic . | . . . . . . . Secondary . | . . . . . . . Self-Inflicted Damage . | . . . . . . . Shots . | . . . . . . . Rammed . | . . . . . . . Targets Rammed . | . . . . . . . Kicked . | . . . . . . . Crushed . | . . . . . . . Highest Temperature 69 | . 69 . . . . . Average Temperature 31 | . 31 . . . . . Received Heat Transfer 48 | . 33 . . . . 15 Siege Activations . | . . . . . . . Robots Corrupted . | . . . . . . . Combat Hostiles . | . . . . . . . Parts Fried . | . . . . . . . Impact Corruptions . | . . . . . . . Robots Melted . | . . . . . . . Combat Hostiles . | . . . . . . . Parts Melted . | . . . . . . . Heat Transferred 100 | . 100 . . . . . Parts Sabotaged . | . . . . . . . Parts Stolen . | . . . . . . . Parts Stripped . | . . . . . . . Power Chain Reactions . | . . . . . . . Missiles Intercepted . | . . . . . . . Alert | -11 -10 -10 -9 -9 -7 -6 ------- Run | Scr Mat Min Mat Min Zio Pro Peak Influence 95 | . 95 2 10 40 . . Initial 3 | . . 2 . 3 . . Average 14 | . 28 2 5 24 . . Maximum Alert Level . | . . . . . . . Low Security (%) 100 | 100 100 100 100 100 . . Level 1 . | . . . . . . . Level 2 . | . . . . . . . Level 3 . | . . . . . . . Level 4 . | . . . . . . . Level 5 . | . . . . . . . High Security . | . . . . . . . Max Security . | . . . . . . . Squads Dispatched 1 | . . . . 1 . . Investigation 1 | . . . . 1 . . Extermination . | . . . . . . . Reinforcement . | . . . . . . . Assault . | . . . . . . . Garrison . | . . . . . . . Intercept . | . . . . . . . Construction Impeded . | . . . . . . . Haulers Reinforced . | . . . . . . . Stealth | -11 -10 -10 -9 -9 -7 -6 --------- Run | Scr Mat Min Mat Min Zio Pro Distress Signals . | . . . . . . . Communications Jammed . | . . . . . . . Distress Signals . | . . . . . . . Times Spotted 12 | . 5 . . . . 7 Peak Tracking Total 5 | . 2 . . . . 5 Tactical Retreats 2 | . 1 . . . . 1 Traps | -11 -10 -10 -9 -9 -7 -6 ------- Run | Scr Mat Min Mat Min Zio Pro Traps Triggered . | . . . . . . . Indirectly . | . . . . . . . Trap Hack Attempts . | . . . . . . . Triggered . | . . . . . . . Disarmed . | . . . . . . . Reprogrammed . | . . . . . . . Reused . | . . . . . . . Traps Extracted . | . . . . . . . Installed . | . . . . . . . Triggered . | . . . . . . . Machines | -11 -10 -10 -9 -9 -7 -6 ---------- Run | Scr Mat Min Mat Min Zio Pro Machines Disabled . | . . . . . . . Max in Single Turn . | . . . . . . . Machines Sabotaged . | . . . . . . . Garrisons Compromised . | . . . . . . . Overloaded Fab Kills . | . . . . . . . Fab Network Shutdowns . | . . . . . . . Hacking | -11 -10 -10 -9 -9 -7 -6 --------- Run | Scr Mat Min Mat Min Zio Pro Machines Accessed 5 | . 1 . 3 1 . . Terminals 5 | . 1 . 3 1 . . Fabricators . | . . . . . . . Repair Stations . | . . . . . . . Recycling Units . | . . . . . . . Scanalyzers . | . . . . . . . Garrison Access . | . . . . . . . Total Hacks 20 | . 5 . 11 4 . . Successful 10 | . 3 . 6 1 . . Failed 10 | . 2 . 5 3 . . Catastrophic . | . . . . . . . Database Lockouts . | . . . . . . . Manual 14 | . 4 . 5 4 . 1 Terminals 20 | . 5 . 11 4 . . Fabricators . | . . . . . . . Repair Stations . | . . . . . . . Recycling Units . | . . . . . . . Scanalyzers . | . . . . . . . Garrison Access . | . . . . . . . Terminal Hacks 8 | . 2 . 5 1 . . Prototype ID Bank 2 | . . . 2 . . . Branch Access Points 2 | . . . 1 1 . . Terminal Index 1 | . . . 1 . . . Unreport Threat 2 | . 2 . . . . . Registered Components 1 | . . . 1 . . . Fabricator Hacks . | . . . . . . . Repair Station Hacks . | . . . . . . . Recycling Unit Hacks . | . . . . . . . Scanalyzer . | . . . . . . . Garrison Access Hacks . | . . . . . . . Unauthorized Hacks 2 | . 1 . 1 . . . Terminals 2 | . 1 . 1 . . . Botnet 2 | . 1 . 1 . . . Fabricators . | . . . . . . . Repair Stations . | . . . . . . . Recycling Units . | . . . . . . . Scanalyzers . | . . . . . . . Garrison Access . | . . . . . . . Data Cores Recovered . | . . . . . . . Used . | . . . . . . . Hacking Detections 5 | . 1 . 3 1 . . Full Trace Events 1 | . . . . 1 . . Feedback Events . | . . . . . . . Feedback Blocked . | . . . . . . . Robot Schematics Acquired . | . . . . . . . Robots Built . | . . . . . . . Matter . | . . . . . . . Time . | . . . . . . . Total Robot Build Rating . | . . . . . . . Part Schematics Acquired . | . . . . . . . Parts Built . | . . . . . . . Matter . | . . . . . . . Time . | . . . . . . . Total Part Build Rating . | . . . . . . . Parts Repaired . | . . . . . . . Time . | . . . . . . . Parts Recycled . | . . . . . . . Recycled Matter . | . . . . . . . Retrieved Matter . | . . . . . . . Retrieved Components . | . . . . . . . Parts Scanalyzed . | . . . . . . . Part Schematics Acquired . | . . . . . . . Parts Damaged . | . . . . . . . Bothacking | -11 -10 -10 -9 -9 -7 -6 ------------ Run | Scr Mat Min Mat Min Zio Pro Used RIF Installer . | . . . . . . . Robots Hacked . | . . . . . . . Non-combat . | . . . . . . . Combat . | . . . . . . . Robot Hacks Applied . | . . . . . . . Relay Couplers Released . | . . . . . . . Robots Rewired . | . . . . . . . Allies Hacked . | . . . . . . . Hacks Repelled . | . . . . . . . Allies | -11 -10 -10 -9 -9 -7 -6 -------- Run | Scr Mat Min Mat Min Zio Pro Total Allies 3 | . . 3 . . . . Largest Group 3 | . . 3 3 3 3 3 Highest-Rated Group 40 | . . 40 40 40 40 40 Highest-Rated Ally 16 | . . 16 16 16 16 16 Total Orders . | . . . . . . . Ally Attacks 28 | . . . . 11 . 17 Total Damage 304 | . . . . 104 . 200 Kills 1 | . . . . 1 . . Allies Corrupted . | . . . . . . . Allies Melted . | . . . . . . . Intel | -11 -10 -10 -9 -9 -7 -6 ------- Run | Scr Mat Min Mat Min Zio Pro Robot Analysis Total . | . . . . . . . Derelict Logs Recovered 2 | . . 1 . . 1 . Drone Launches . | . . . . . . . Drone Recoveries . | . . . . . . . Exploration | -11 -10 -10 -9 -9 -7 -6 ------------- Run | Scr Mat Min Mat Min Zio Pro Turns Passed 1022 | 54 165 122 89 86 346 160 Spaces Moved 1602 | 38 217 208 177 144 650 168 Core 3 | 3 . . . . . . Treads . | . . . . . . . Legs . | . . . . . . . Wheels 75 | 35 40 . . . . . Hover . | . . . . . . . Flight 1524 | . 177 208 177 144 650 168 Fastest Speed 37 | 50 37 37 37 37 37 37 Average Speed 42 | 83 47 37 37 37 37 67 Slowest Speed 200 | 90 120 37 37 37 37 200 Overloaded Moves . | . . . . . . . Propulsion Burnouts . | . . . . . . . Robots Hopped . | . . . . . . . Cave-ins Triggered . | . . . . . . . Exploration Rate (%) 34 | 3 36 43 23 37 81 17 Regions Visited 6 Branch Regions 4 Pre-discovered Areas 1 | . . 1 . . . . Known Exits Taken 1 | . . . 1 . . . Unknown Exits Taken 5 | 1 1 1 . 1 1 . Scrap Searched 5 | . . . . 1 4 . Spaces Dug 1 | . . . . . . 1 Terrain Destroyed 1 | . . . . . . 1 Melee 1 | . . . . . . 1 Projectile . | . . . . . . . AOE . | . . . . . . . Terrain Rammed . | . . . . . . . Walls Destroyed . | . . . . . . . Machines Disabled . | . . . . . . . Actions | -11 -10 -10 -9 -9 -7 -6 --------- Run | Scr Mat Min Mat Min Zio Pro Total 1894 | 58 262 252 199 176 757 190 Wait 224 | 14 24 45 19 33 89 . Move 1596 | 37 216 207 176 143 649 168 Hop . | . . . . . . . Pick Up 13 | 2 1 . 2 . 6 2 Fast Attach 13 | 4 5 . 1 . 3 . Attach 3 | 1 . . . . . 2 Detach 1 | . . . . . . 1 Swap 1 | . 1 . . . . . Drop 15 | . 4 . 1 . 9 1 Fire 8 | . 8 . . . . . Melee 12 | . . . . . . 12 Ram . | . . . . . . . Kick . | . . . . . . . Crush . | . . . . . . . Escape Stasis . | . . . . . . . Rewire . | . . . . . . . Trap . | . . . . . . . Miscellaneous 8 | . 3 . . . 1 4 Route ------- -11/Scrapyard -10/Materials (discovered 2 exits: [*Min x2]) -10/Mines -9/Materials (discovered 2 exits: *Min x2) -9/Mines -7/Zion -6/Proximity Caves History --------- Turn | Location | Event 1 | -11/Scrapyard | Upgraded with Propulsion slot (x1) 1 | -11/Scrapyard | Upgraded with Utility slot (x1) 1 | -11/Scrapyard | Upgraded with Weapon slot (x1) 19 | -11/Scrapyard | Discovered new exit (range 15) 55 | -11/Scrapyard | Entered Materials 55 | -10/Materials | Discovered new exit (range 7) 185 | -10/Materials | Discovered new exit (range 15) 220 | -10/Materials | Entered Mines 230 | -10/Mines | Met a Derelict bent on vengeance 267 | -10/Mines | Learned location of Zion (-7) 280 | -10/Mines | Assisted by bots powering up and referring to "LRC-V3" 300 | -10/Mines | Discovered new exit (range 15) 304 | -10/Mines | Build established: Mutant 342 | -10/Mines | Entered Materials 342 | -9/Materials | Accompanied by 3 allies 344 | -9/Materials | Reached level 2 366 | -9/Materials | Identified exit to Mines 431 | -9/Materials | Entered Mines 431 | -9/Mines | Accompanied by 3 allies 474 | -9/Mines | Reached level 3 482 | -9/Mines | A Derelict revealed a hidden shortcut to a safe place 517 | -9/Mines | Entered Zion 517 | -7/Zion | Accompanied by 3 allies 587 | -7/Zion | Upgraded with Utility slot (x1) 657 | -7/Zion | Build established: Hacker-Mutant 679 | -7/Zion | Learned 4 Factory zone layouts 740 | -7/Zion | Found Relay Coupler [Programmer] 741 | -7/Zion | Found Relay Coupler [Programmer] 747 | -7/Zion | Found Relay Coupler [Programmer] 750 | -7/Zion | Found Relay Coupler [Programmer] 806 | -7/Zion | Discovered new exit (range 16) 863 | -7/Zion | Entered Proximity Caves 863 | -6/Proximity Caves | Accompanied by 3 allies 865 | -6/Proximity Caves | Reached level 4 871 | -6/Proximity Caves | Upgraded with Weapon slot (x1) 902 | -6/Proximity Caves | Acquired the password to a Derelict Tinkerer's latest research 907 | -6/Proximity Caves | Found Prototype Special Weapon 962 | -6/Proximity Caves | Attracted the attention of an 0b10 checkpoint 1006 | -6/Proximity Caves | Core integrity fell below 50% 1017 | -6/Proximity Caves | Core integrity fell below 20% 1023 | -6/Proximity Caves | Destroyed by H-66 Slayer with Gauss Rifle Last Messages --------------- classification: Search and Destroy. And maybe Retrieve. Something like that, yeah. 00962_ Y-54 Guardian: "INTERCEPTING UNREGISTERED DERELICT." 00965_ Acquired 1 matter. 00968_ Acquired 3 matter. 00971_ Acquired 1 matter. 00975_ Acquired 25 matter. 00977_ Y-54 Guardian destroyed. 00982_ Flak Gun fries itself beyond repair. 00983_ Trooper 1a destroyed. 00986_ Dropped Relay Coupler [Programmer]. 00987_ Acquired Protomatter-29. 00990_ Imp. Heat Sink fries itself beyond repair. 00998_ S-27 Virus destroyed. 01006_ S-27 Virus Lgt. Nuclear Core severed. 01009_ S-27 Virus Autogun severed. 01009_ Phasing Sabre follow-up attack on S-27 Virus. 01013_ Penetrated by Slug. 01014_ VTOL Module destroyed. 01016_ Penetrated by Slug. Map ----- +----------------------------------------------------+ | ??# #????# #?? ##???????? | | ??# ##### ##????# ###### ###?????? | | ??# #???# #?????# #?## ????? | | ??## #???# #?????# ### ?????? | | ???# ??? #?????# ## #??????????? | | ???# ###??###????## #??????????? | | ???## ##???????????# ##### #??????????? | | ????######??????????# [ ##???????????????????? | | ???????# #????????## #????????????????????? | | ???????# ##????### ##???????????????????? | | ??????## ###?## #???????????????????? | | ??????# ### ########????????????? | | ??????# #### #????????????? | | ?????## ##??## #????????????? | | ?????# #????# ##### #????????????? | | ?# #????## ##??## #????????????? | | ?# ##?????# #???# #????????????? | | ?# #??????# #??## #????????????? | | ?# ## ##### #?????# #?## ##????????????? | | ?###??# #????## ????# ### #?????????????? | | ??????# ??????## #??# ##????????????? | | ??????# ????????# #########%% #????????????? | | ??????# ????????## ### !=h*# #????????????? | | ??????#????????######## %!%# #????????????? | | ???????????# ## % *[ # ##????????????? | | ???????# s @s #####?????????????? | | ???????# ### * #?????????????????? | | ???????#### ##????## [ $ ????????????? | | ??????????#??????????### #######???????????? | | ???????????????????????#########?????????????????? | | ?????????????????????????????????????????????????? | | ?????????????????????????????????????????????????? | | ?????????????????????????????????????????????????? | | ?????????????????????????????????????????????????? | | ?????????????????????????????????????????????????? | | ?????????????????????????????????????????????????? | | ?????????????????????????????????????????????????? | | ?????????????????????????????????????????????????? | | ?????????????????????????????????????????????????? | | ?????????????????????????????????????????????????? | | ?????????????????????????????????????????????????? | | ?????????????????????????????????????????????????? | | ?????????????????????????????????????????????????? | | ?????????????????????????????????????????????????? | | ?????????????????????????????????????????????????? | | ?????????????????????????????????????????????????? | | | | | | | | | +----------------------------------------------------+ Best States ------------- Heat Dissipation 25 Energy Generation 15 Energy Capacity 250 Matter Stores 300 Matter Capacity 300 Sight Range 22 Terrain Scan Density 10 Evasion (%) 62 Targeting Accuracy 6 Armor Integrity Analysis 33 Offensive Hacking 15 Defensive Hacking 5 Item Schematics ----------------- None Robot Schematics ------------------ None Fabricated ------------ Nothing Alien Tech Used ----------------- None Achievements -------------- None Challenges ------------ None RPGLIKE | -11 -10 -10 -9 -9 -7 -6 --------- Run | Scr Mat Min Mat Min Zio Pro Levels Raised 3 | . . . 1 1 . 1 XP Earned 8050 | 3000 435 500 1500 685 650 1280 XP Spent 7460 | 2950 . . 1510 . 1145 1855 Upgrades 18 | 7 . . 5 . 3 3 Propulsion Slot 1 | 1 . . . . . . Utility Slot 2 | 1 . . . . 1 . Weapon Slot 2 | 1 . . . . . 1 Core Integrity 4 | . . . 2 . 1 1 Energy Generation 1 | . . . . . 1 . Inventory Capacity 4 | 1 . . 2 . . 1 Hack Attack % 3 | 3 . . . . . . Hack Defense % 1 | . . . 1 . . . Protomatter Created 109 | . 48 . . . . 61 Integrity Restored 163 | . 58 . . . 9 96 Core 144 | . 48 . . . . 96 Parts 19 | . 10 . . . 9 . Protomatter Decayed 70 | . . . . 35 . 35 Game ------ Seed IntegrityIonThrower Manual? 0 Play Time 00:27:44 Cumulative 93.6 hours Start 2021.12.07 @ 02:38:22 End 2021.12.07 @ 03:07:39 Sessions 1 Manual Loads 0 Difficulty Rogue Special Mode Winter2019/RPGLIKE Game No. 131 Rogue 131 Adventurer 0 Explorer 0 Win Type - Total 1 Types 1/0/0/0/0/0/0/0/0 Lore% 43 Gallery% 55 Achievement% 44 Wizard Run 0 Options --------- ASCII 0 Keyboard 0 Movement Mouse Keybinds 0 Fullscreen 2 Font 18/X11 Map View 76x50 Tactical HUD 1 Map Filters NONE Filters NONE Steam 1 RUN: 85b1a831-0802-46b4-b4eb-2ffce48462cf